bitfinex/quotes_SOLUSD_20251103
["timestamp","ask_amount","ask_price","bid_price","bid_amount"]
[1762170848955,3.82719945,175.77,175.74,20.592]
[1762170849158,5.45282867,175.83,175.76,1.82825465]
[1762170849470,5.45282867,175.83,175.74,20.592]
[1762170849471,0.66,175.83,175.81,1.82825465]
[1762170849646,0.66,175.83,175.81,7.5161454]
[1762170849848,0.66,175.83,175.82,1.82825465]
[1762170850046,0.66,175.83,175.81,1.82825465]
[1762170850244,0.66,175.83,175.8,1.82825465]
[1762170850470,0.66,175.83,175.81,1.82825465]
[1762170851767,6.3473187,175.83,175.77,26.2811984]
[1762170851970,0.14216157,175.82,175.75,20.592]
[1762170852168,1.82825465,175.81,175.75,1.82825465]
[1762170852478,0.80216157,175.82,175.77,1.82825465]
[1762170852650,0.80216157,175.82,175.78,1.82825465]
[1762170852853,0.66,175.82,175.79,1.82825465]
[1762170853157,0.66,175.82,175.8,1.82825465]
[1762170853656,0.66,175.82,175.76,20.592]
[1762170853657,0.66,175.82,175.79,1.82825465]
[1762170853859,6.34773467,175.82,175.79,1.82825465]
[1762170854260,0.72,175.81,175.79,1.82825465]
[1762170854469,0.72,175.81,175.79,2.8510703]
[1762170855488,0.72,175.81,175.77,2.8510703]
[1762170855777,0.72,175.81,175.77,8.54026468]
[1762170856181,0.96216157,175.84,175.8,2.8510703]
[1762170856395,0.1,175.84,175.83,2.8510703]
[1762170856686,0.1,175.85,175.83,3.5610703]
[1762170856856,0.1,175.85,175.84,3.5610703]
[1762170857959,0.1,175.85,175.84,29.84005847]
[1762170859156,0.1,175.85,175.84,9.24805847]
[1762170861379,0.1,175.85,175.84,5.68698817]
[1762170861696,0.1,175.85,175.84,8.53805847]
[1762170861978,0.1,175.85,175.84,29.84005847]
[1762170862372,0.1,175.85,175.84,9.24805847]
[1762170862681,0.1,175.86,175.85,20.592]
[1762170862858,0.1,175.86,175.85,24.1530703]
[1762170864178,0.1,175.86,175.85,29.83973507]
[1762170866385,0.1,175.91,175.85,82.27854853]
[1762170866560,0.1,175.91,175.9,2.8510703]
[1762170866761,0.1,175.91,175.9,3.5610703]
[1762170867458,0.1,175.91,175.9,24.1530703]
[1762170868171,0.1,175.91,175.9,20.592]
[1762170868376,0.1,175.91,175.9,29.12811862]
[1762170868574,0.82,175.91,175.9,26.27704832]
[1762170868777,0.1,175.91,175.9,8.53611862]
[1762170869467,0.1,175.91,175.9,29.83811862]
[1762170869782,0.1,175.91,175.9,29.12811862]
[1762170872681,0.82,175.91,175.9,29.12811862]
[1762170872882,0.1,175.91,175.9,29.12811862]
[1762170874562,0.81,175.91,175.9,29.12811862]
[1762170876078,0.1,175.91,175.9,29.83811862]
[1762170876958,0.1,175.91,175.9,26.27704832]
[1762170877161,0.1,175.91,175.9,29.12811862]
[1762170881172,0.81,175.91,175.9,29.12811862]
[1762170881374,0.1,175.91,175.9,29.12811862]
[1762170881596,0.1,175.91,175.9,26.27704832]
[1762170881902,0.81,175.91,175.9,26.27704832]
[1762170882073,0.81,175.91,175.9,29.12811862]
[1762170883078,0.81,175.91,175.9,26.27704832]
[1762170883967,0.81,175.91,175.89,5.68529918]
[1762170884372,0.81,175.91,175.89,8.53636948]
[1762170885680,0.81,175.91,175.89,5.68529918]
[1762170885889,0.81,175.91,175.88,8.53665529]
[1762170886083,0.81,175.91,175.88,5.68558499]
[1762170886084,4.60840531,175.91,175.88,5.68558499]
[1762170886291,0.69,175.9,175.87,8.53699474]
[1762170886488,0.69,175.9,175.87,5.68592444]
[1762170887292,4.48840531,175.9,175.88,2.8510703]
[1762170887699,0.69,175.89,175.87,8.53699474]
[1762170888288,0.69,175.89,175.88,2.8510703]
[1762170889378,0.69,175.89,175.87,8.53699474]
[1762170889578,0.69,175.89,175.88,2.8510703]
[1762170889794,3.79943192,175.9,175.88,8.53676509]
[1762170889994,0.69,175.89,175.88,8.53676509]
[1762170890191,4.48943192,175.89,175.88,8.53676509]
[1762170890404,0.69,175.89,175.88,8.53676509]
[1762170890598,4.48943192,175.89,175.88,8.53676509]
[1762170890786,0.69,175.89,175.88,8.53676509]
[1762170891203,4.48943192,175.89,175.88,8.53676509]
[1762170891501,0.69,175.89,175.88,8.53676509]
[1762170891709,4.48943192,175.89,175.88,8.53676509]
[1762170891884,0.69,175.89,175.88,8.53676509]
[1762170892210,4.48943192,175.89,175.88,8.53676509]
[1762170893510,4.48943192,175.89,175.87,8.53708534]
[1762170893704,4.48943192,175.88,175.87,8.53708534]
[1762170893922,0.69,175.88,175.87,5.68601504]
[1762170894090,4.48943192,175.88,175.85,5.68666477]
[1762170894295,3.79943192,175.87,175.85,5.68666477]
[1762170894505,3.79943192,175.86,175.85,5.68666477]
[1762170894713,4.48943192,175.86,175.85,5.68666477]
[1762170895084,0.69,175.86,175.85,5.68666477]
[1762170895921,3.79943192,175.86,175.85,8.53773507]
[1762170896124,4.48943192,175.86,175.85,8.53773507]
[1762170896333,0.69,175.86,175.85,8.53773507]
[1762170897245,4.48943192,175.86,175.85,8.53773507]
[1762170899615,4.48943192,175.86,175.85,5.68666477]
[1762170899829,4.48943192,175.86,175.85,8.53773507]
[1762170900829,4.48943192,175.86,175.78,2.8510703]
[1762170900830,9.93098926,175.85,175.78,5.68892934]
[1762170901035,11.39979212,175.84,175.78,8.53999964]
[1762170901216,3.79943192,175.83,175.78,8.53999964]
[1762170901421,3.79943192,175.82,175.76,20.592]
[1762170901618,3.79943192,175.81,175.75,8.54097072]
[1762170901821,3.79943192,175.8,175.76,2.8510703]
[1762170902132,3.79943192,175.79,175.76,2.8510703]
[1762170902308,3.79943192,175.78,175.76,8.54032583]
[1762170902514,4.7492899,175.82,175.77,2.8510703]
[1762170902727,4.51557429,175.81,175.78,2.8510703]
[1762170902931,3.82557429,175.8,175.77,2.8510703]
[1762170903144,3.82557429,175.79,175.76,5.68925553]
[1762170903317,3.82557429,175.78,175.76,8.54032583]
[1762170903512,3.82557429,175.77,175.76,8.54032583]
[1762170904410,3.82557429,175.77,175.75,14.22475106]
[1762170904411,4.51557429,175.77,175.75,8.54092197]
[1762170904628,0.69,175.76,175.75,8.54092197]
[1762170905137,0.69,175.78,175.75,8.54092197]
[1762170905337,4.50912476,175.78,175.75,8.54092197]
[1762170905639,3.81912476,175.8,175.73,20.592]
[1762170905938,0.69,175.77,175.73,20.592]
[1762170906112,0.69,175.77,175.73,5.69052054]
[1762170906113,3.81912476,175.76,175.73,5.69052054]
[1762170906514,0.69,175.75,175.73,5.69052054]
[1762170906720,0.69,175.75,175.7,35.51010025]
[1762170906721,4.50912476,175.75,175.7,14.22810025]
[1762170906919,6.67019506,175.74,175.68,3.0510703]
[1762170907212,4.50912476,175.74,175.69,5.69184358]
[1762170907536,4.50912476,175.73,175.69,5.69184358]
[1762170907728,0.69,175.73,175.69,5.69184358]
[1762170907927,0.69,175.72,175.69,5.69184358]
[1762170910323,0.69,175.72,175.68,0.2]
[1762170911009,0.69,175.72,175.68,5.89205466]
[1762170912130,0.69,175.72,175.68,8.74312496]
[1762170913937,0.69,175.72,175.68,5.89205466]
[1762170914137,0.14216157,175.71,175.68,0.2]
[1762170914543,0.14216157,175.71,175.67,0.2]
[1762170914544,9.93098926,175.68,175.67,0.2]
[1762170914723,17.31270526,175.68,175.61,5.69438865]
[1762170915047,0.14216157,175.64,175.59,8.54590245]
[1762170915226,0.67,175.63,175.59,8.54590245]
[1762170915426,0.67,175.63,175.6,2.8510703]
[1762170915627,0.67,175.63,175.58,0.2]
[1762170915840,0.14216157,175.62,175.58,0.2]
[1762170916013,0.67,175.63,175.59,2.8510703]
[1762170916346,0.14216157,175.64,175.6,1.82831858]
[1762170916546,0.67,175.63,175.59,0.72]
[1762170916727,0.67,175.65,175.62,1.82831858]
[1762170916917,9.78882769,175.72,175.64,1.82831858]
[1762170917116,9.78882769,175.72,175.69,1.82831858]
[1762170917117,4.45752537,175.72,175.69,1.82831858]
[1762170917318,0.67,175.72,175.69,1.82831858]
[1762170917640,0.67,175.71,175.65,0.72]
[1762170917812,0.67,175.71,175.69,1.82831858]
[1762170918439,0.67,175.71,175.69,4.49720177]
[1762170918940,0.14216157,175.7,175.65,20.592]
[1762170919239,3.78752537,175.7,175.66,4.49720177]
[1762170919438,0.67,175.7,175.67,4.49720177]
[1762170919621,0.67,175.69,175.64,19.92711115]
[1762170919817,0.67,175.69,175.66,4.49720177]
[1762170920827,0.67,175.69,175.66,10.18997074]
[1762170923547,19.26725373,175.72,175.66,10.18997074]
[1762170923735,0.67,175.7,175.66,10.18997074]
[1762170924042,0.67,175.7,175.66,5.69276897]
[1762170924917,0.67,175.7,175.66,10.18997074]
[1762170925118,9.78882769,175.72,175.68,4.49720177]
[1762170925119,4.45752537,175.72,175.68,4.49720177]
[1762170925322,3.78752537,175.71,175.68,4.49720177]
[1762170925518,4.45752537,175.71,175.68,4.49720177]
[1762170925740,3.78752537,175.72,175.68,4.49720177]
[1762170925940,0.67,175.72,175.68,4.49720177]
[1762170926138,0.67,175.71,175.68,4.49720177]
[1762170926737,0.67,175.71,175.67,4.49720177]
[1762170927051,0.67,175.71,175.68,5.69216757]
[1762170927248,3.78752537,175.7,175.68,5.69216757]
[1762170927639,3.78752537,175.7,175.65,4.49720177]
[1762170927640,0.66,175.69,175.65,4.49720177]
[1762170927943,3.78752537,175.68,175.65,5.6928535]
[1762170928327,4.44752537,175.68,175.65,5.6928535]
[1762170928540,0.66,175.68,175.65,5.6928535]
[1762170929046,3.78752537,175.68,175.65,10.85005527]
[1762170929228,3.78752537,175.69,175.65,10.85005527]
[1762170929550,3.78752537,175.68,175.65,10.85005527]
[1762170929745,3.78752537,175.69,175.65,10.19005527]
[1762170929967,3.78752537,175.68,175.66,0.66]
[1762170930160,4.44752537,175.69,175.65,25.08290468]
[1762170930360,3.78752537,175.68,175.65,25.08290468]
[1762170930848,3.78752537,175.68,175.62,20.592]
[1762170930849,0.14216157,175.67,175.63,5.69376131]
[1762170931044,3.78752537,175.66,175.63,5.69376131]
[1762170931229,3.78752537,175.65,175.63,5.69376131]
[1762170931428,4.44752537,175.66,175.62,5.6940465]
[1762170931624,3.78752537,175.65,175.62,5.6940465]
[1762170932236,4.44752537,175.64,175.62,5.6940465]
[1762170932427,0.66,175.64,175.62,5.6940465]
[1762170932753,4.44902824,175.63,175.6,5.69476082]
[1762170932961,0.66,175.63,175.6,5.69476082]
[1762170933253,4.44902824,175.63,175.59,5.69508514]
[1762170933458,0.66,175.63,175.59,6.35508514]
[1762170933659,0.66,175.63,175.59,10.85228691]
[1762170934344,3.79104928,175.62,175.59,10.85228691]
[1762170934961,4.45104928,175.62,175.59,10.19228691]
[1762170935148,0.66,175.62,175.59,5.69508514]
[1762170935828,3.79194406,175.61,175.59,5.69508514]
[1762170936030,3.79200958,175.6,175.58,5.8953894]
[1762170936233,3.79219335,175.61,175.59,6.35482956]
[1762170936452,0.66,175.64,175.59,6.35482956]
[1762170936654,3.79314012,175.63,175.59,6.35482956]
[1762170936831,3.79314012,175.62,175.6,5.15720177]
[1762170937037,3.79279371,175.65,175.61,4.49720177]
[1762170937233,9.78882769,175.68,175.63,4.49720177]
[1762170937234,3.79279371,175.64,175.63,4.49720177]
[1762170937555,3.79279371,175.64,175.62,4.49720177]
[1762170937759,3.79279371,175.63,175.62,4.49720177]
[1762170937943,3.79279371,175.63,175.62,0.66]
[1762170938254,3.79279371,175.63,175.62,10.85131405]
[1762170938556,3.79279371,175.63,175.62,6.35411228]
[1762170939338,3.79279371,175.63,175.62,10.85131405]
[1762170940461,3.79279371,175.63,175.62,8.18207821]
[1762170941058,3.79279371,175.63,175.62,5.69411228]
[1762170941259,4.45279371,175.63,175.61,5.69441872]
[1762170941441,4.45279371,175.62,175.61,5.69441872]
[1762170941636,3.79279371,175.62,175.61,5.69441872]
[1762170942841,3.79279371,175.62,175.6,10.19682237]
[1762170943162,3.79279371,175.61,175.6,10.19682237]
[1762170944261,3.79279371,175.61,175.6,5.69476082]
[1762170944957,3.79279371,175.61,175.6,20.592]
[1762170945861,3.79279371,175.61,175.59,45.02685954]
[1762170946047,3.79279371,175.6,175.59,45.74685954]
[1762170947165,3.79279371,175.6,175.59,41.24479799]
[1762170947351,3.79279371,175.6,175.59,26.28708514]
[1762170949573,3.79279371,175.6,175.59,30.78914669]
[1762170950271,3.79279371,175.6,175.59,31.50914669]
[1762170950652,3.79279371,175.6,175.59,30.78914669]
[1762170950858,3.79279371,175.6,175.59,26.28708514]
[1762170951258,4.50279371,175.6,175.58,0.2]
[1762170951458,4.50279371,175.59,175.58,0.2]
[1762170951658,3.79279371,175.59,175.58,0.2]
[1762170952681,3.79279371,175.59,175.58,5.89540949]
[1762170953350,3.79279371,175.59,175.58,5.85670469]
[1762170954078,3.79279371,175.59,175.58,0.1612952]
[1762170954780,3.79279371,175.59,175.58,5.85670469]
[1762170955973,4.48279371,175.59,175.58,0.1612952]
[1762170956283,3.79279371,175.59,175.58,0.1612952]
[1762170958956,3.79279371,175.59,175.58,5.85670469]
[1762170959167,3.79279371,175.59,175.58,0.1612952]
[1762170961185,4.48279371,175.59,175.58,0.1612952]
[1762170962265,3.79279371,175.59,175.58,0.1612952]
[1762170962984,6.31238763,175.59,175.58,0.1612952]
[1762170963175,12.00747277,175.59,175.58,0.1612952]
[1762170963677,12.14963434,175.59,175.58,0.1612952]
[1762170966180,9.78882769,175.58,175.54,0.2]
[1762170966361,1.82959392,175.55,175.54,0.2]
[1762170966565,5.62238763,175.55,175.54,0.2]
[1762170966770,6.31238763,175.55,175.54,0.2]
[1762170967293,16.24337689,175.55,175.54,0.2]
[1762170968398,21.93975968,175.55,175.54,0.2]
[1762170969264,3.79279371,175.55,175.54,2.72959392]
[1762170969479,3.79279371,175.58,175.54,8.42630122]
[1762170969677,3.79279371,175.57,175.56,1.82959392]
[1762170970484,3.79279371,175.57,175.55,1.82959392]
[1762170970670,3.79279371,175.56,175.55,1.82959392]
[1762170971387,3.79279371,175.56,175.54,8.42630122]
[1762170971687,3.79279371,175.55,175.54,8.42630122]
[1762170971883,3.79279371,175.55,175.54,0.2]
[1762170972090,4.48279371,175.55,175.54,0.2]
[1762170972486,10.1791765,175.55,175.54,0.2]
[1762170972784,3.79279371,175.55,175.54,0.2]
[1762170972988,4.48279371,175.55,175.54,0.2]
[1762170974785,12.15093199,175.55,175.54,0.2]
[1762170977884,6.4545492,175.55,175.54,0.2]
[1762170978490,7.48550707,175.55,175.54,0.2]
[1762170978684,10.32133807,175.55,175.54,0.2]
[1762170978890,13.18188986,175.55,175.54,0.2]
[1762170980379,10.32133807,175.55,175.54,0.2]
[1762170982972,3.79279371,175.55,175.54,3.74055179]
[1762170983174,3.79279371,175.55,175.54,9.43725909]
[1762170985293,3.79279371,175.55,175.54,0.88]
[1762170985590,3.79279371,175.55,175.54,0.2]
[1762170985996,3.79279371,175.55,175.54,5.8967073]
[1762170986889,3.79279371,175.55,175.54,9.41725909]
[1762170987584,3.79279371,175.55,175.54,8.75725909]
[1762170987789,3.79279371,175.55,175.54,0.2]
[1762170987994,4.47279371,175.55,175.54,0.2]
[1762170988872,10.31133807,175.55,175.54,0.2]
[1762170989096,4.61495528,175.55,175.54,0.2]
[1762170989482,4.47279371,175.55,175.54,0.2]
[1762170989698,3.79279371,175.55,175.54,0.2]
[1762170990696,4.47279371,175.55,175.54,0.2]
[1762170990995,3.79279371,175.55,175.54,0.2]
[1762170996403,8.57883861,175.55,175.54,0.2]
[1762170997106,9.25883861,175.55,175.54,0.2]
[1762170997905,8.57883861,175.55,175.54,0.2]
[1762170998298,9.25883861,175.55,175.54,0.2]
[1762170998607,8.57883861,175.55,175.54,0.2]
[1762170998997,9.30769026,175.55,175.54,0.2]
[1762170999310,8.62769026,175.55,175.54,0.2]
[1762171000106,3.834529,175.55,175.52,5.69734192]
[1762171000403,8.62837558,175.54,175.51,8.55820114]
[1762171000611,3.834529,175.53,175.51,9.21820114]
[1762171000803,3.834529,175.52,175.51,9.21820114]
[1762171001008,3.834529,175.52,175.51,0.66]
[1762171001304,3.834529,175.52,175.51,6.35768104]
[1762171001497,3.834529,175.52,175.51,9.21823283]
[1762171007806,3.834529,175.52,175.51,5.69768104]
[1762171008004,3.834529,175.52,175.51,9.27823283]
[1762171010906,3.834529,175.52,175.51,8.55823283]
[1762171011097,3.834529,175.52,175.51,9.27823283]
[1762171017318,8.62837558,175.52,175.51,9.27823283]
[1762171017511,8.62837558,175.52,175.51,8.55823283]
[1762171017825,8.62837558,175.52,175.51,5.69768104]
[1762171018422,8.62837558,175.52,175.51,8.55823283]
[1762171019509,3.834529,175.52,175.51,9.27823283]
[1762171019725,4.79384658,175.59,175.55,20.592]
[1762171019937,4.79384658,175.6,175.58,2.86055179]
[1762171020136,4.79384658,175.6,175.59,2.86055179]
[1762171020433,0.67,175.59,175.54,23.45255179]
[1762171020625,2.86055179,175.55,175.49,0.2]
[1762171020830,8.55725909,175.54,175.49,5.89810542]
[1762171021019,9.22725909,175.54,175.49,5.89810542]
[1762171021218,0.67,175.53,175.49,5.89810542]
[1762171021534,0.67,175.53,175.49,6.61810542]
[1762171021739,0.67,175.53,175.49,9.47865721]
[1762171023016,0.67,175.53,175.49,6.61810542]
[1762171023438,0.67,175.53,175.49,5.89810542]
[1762171023824,0.67,175.53,175.49,6.61810542]
[1762171024451,4.80530404,175.55,175.5,3.58055179]
[1762171024643,4.80530404,175.56,175.53,2.86055179]
[1762171024827,5.47530404,175.57,175.54,8.55725909]
[1762171025019,0.67,175.56,175.54,8.55725909]
[1762171025219,0.67,175.56,175.54,2.86055179]
[1762171025534,0.67,175.56,175.53,9.27747276]
[1762171025840,4.80530404,175.56,175.53,19.93950058]
[1762171026144,6.37815748,175.59,175.55,2.86055179]
[1762171026145,4.80530404,175.59,175.55,2.86055179]
[1762171026344,4.80530404,175.59,175.57,2.86055179]
[1762171026844,4.80530404,175.6,175.57,8.55603098]
[1762171027046,4.80530404,175.6,175.58,0.72]
[1762171027256,4.80530404,175.6,175.59,2.86055179]
[1762171027426,4.80530404,175.62,175.59,2.86055179]
[1762171027729,4.80530404,175.62,175.59,3.58055179]
[1762171028957,4.80530404,175.62,175.6,8.55531261]
[1762171029755,6.37815748,175.63,175.6,8.55531261]
[1762171030122,4.7995464,175.61,175.6,8.55531261]
[1762171031550,4.7995464,175.61,175.6,9.27531261]
[1762171031741,8.63748928,175.61,175.6,9.27531261]
[1762171032453,8.63748928,175.61,175.6,8.55531261]
[1762171034242,8.63748928,175.61,175.59,2.86055179]
[1762171034447,3.83794288,175.6,175.57,29.14802413]
[1762171034660,3.83794288,175.59,175.57,44.08735886]
[1762171034959,5.4995464,175.61,175.58,2.86055179]
[1762171035157,8.6359134,175.6,175.57,26.28747234]
[1762171035464,8.6359134,175.6,175.56,8.55656237]
[1762171035465,3.836367,175.59,175.56,8.55656237]
[1762171035760,3.836367,175.58,175.56,8.55656237]
[1762171035942,3.836367,175.57,175.56,8.55656237]
[1762171036139,3.836367,175.57,175.56,5.69601058]
[1762171038467,3.836367,175.57,175.56,8.55656237]
[1762171038761,3.836367,175.57,175.56,5.69601058]
[1762171041775,4.536367,175.57,175.54,20.592]
[1762171041940,9.3359134,175.56,175.52,5.69735642]
[1762171042135,3.836367,175.55,175.52,5.69735642]
[1762171042362,3.836367,175.54,175.51,5.69761714]
[1762171042545,3.836367,175.53,175.51,6.39761714]
[1762171042747,3.836367,175.52,175.51,6.39761714]
[1762171043660,3.836367,175.52,175.5,5.69792051]
[1762171043855,3.836367,175.51,175.5,8.2274369]
[1762171045258,3.836367,175.51,175.5,6.39792051]
[1762171045466,3.836367,175.51,175.5,8.2274369]
[1762171047973,4.516367,175.51,175.49,20.792]
[1762171048268,21.47394706,175.55,175.49,20.792]
[1762171048269,3.836367,175.5,175.49,20.792]
[1762171048566,3.836367,175.5,175.49,0.2]
[1762171048772,4.516367,175.5,175.49,0.2]
[1762171055866,3.836367,175.5,175.49,0.2]
[1762171056471,4.516367,175.5,175.49,0.2]
[1762171059484,0.68,175.5,175.49,0.2]
[1762171059665,4.516367,175.5,175.49,0.2]
[1762171059865,0.68,175.5,175.49,0.2]
[1762171060080,4.516367,175.5,175.49,0.2]
[1762171061159,3.836367,175.5,175.49,8.38784677]
[1762171061357,3.836367,175.52,175.49,8.38784677]
[1762171061560,3.836367,175.53,175.51,1.82951639]
[1762171061760,3.836367,175.52,175.5,0.66]
[1762171061991,3.836367,175.54,175.5,0.66]
[1762171062162,3.836367,175.57,175.53,40.53161145]
[1762171062367,3.82260823,175.59,175.57,20.592]
[1762171062564,3.82260823,175.58,175.57,20.592]
[1762171062762,3.82260823,175.58,175.48,0.2]
[1762171062763,8.62215463,175.58,175.5,0.66]
[1762171062985,8.62215463,175.58,175.49,20.792]
[1762171062986,1.82951639,175.53,175.49,20.792]
[1762171063163,3.82260823,175.52,175.49,20.792]
[1762171063364,3.82260823,175.53,175.49,20.792]
[1762171063565,3.82260823,175.52,175.49,6.59832706]
[1762171063779,4.53260823,175.52,175.49,6.59832706]
[1762171063974,0.71,175.52,175.49,5.89832706]
[1762171064188,4.53260823,175.52,175.49,5.89832706]
[1762171064389,0.71,175.52,175.49,5.89832706]
[1762171064584,4.53260823,175.52,175.49,5.89832706]
[1762171064776,0.71,175.52,175.49,5.89832706]
[1762171064976,4.53260823,175.52,175.49,5.89832706]
[1762171065173,0.71,175.52,175.49,0.2]
[1762171065391,4.53260823,175.51,175.49,0.2]
[1762171065603,3.82260823,175.5,175.49,0.2]
[1762171066290,4.53260823,175.52,175.49,0.2]
[1762171066489,3.82260823,175.51,175.49,5.89832569]
[1762171067486,3.82260823,175.51,175.49,0.2]
[1762171067885,3.82260823,175.51,175.49,8.42760678]
[1762171068073,3.82260823,175.54,175.49,8.42760678]
[1762171068388,3.82260823,175.53,175.5,2.52951639]
[1762171068580,3.82260823,175.54,175.5,2.52951639]
[1762171068892,3.82260823,175.53,175.5,2.52951639]
[1762171069087,3.82260823,175.54,175.5,0.7]
[1762171069392,0.71,175.55,175.5,2.52951639]
[1762171069393,3.82260823,175.53,175.5,2.52951639]
[1762171069566,4.53260823,175.54,175.5,2.52951639]
[1762171069765,3.82260823,175.53,175.5,0.7]
[1762171069986,3.82260823,175.53,175.5,2.52951639]
[1762171070596,3.82260823,175.53,175.51,5.69768104]
[1762171071085,3.82260823,175.55,175.52,2.52951639]
[1762171071290,3.82260823,175.54,175.52,1.82951639]
[1762171071480,3.82260823,175.54,175.51,8.22719743]
[1762171071679,3.82260823,175.53,175.51,8.22719743]
[1762171071987,3.82260823,175.54,175.51,8.22719743]
[1762171072182,3.82260823,175.53,175.51,7.52719743]
[1762171072490,3.82260823,175.54,175.51,8.22719743]
[1762171072671,3.82260823,175.53,175.51,8.22719743]
[1762171072874,3.82260823,175.54,175.51,8.22719743]
[1762171073073,3.82260823,175.53,175.51,8.22719743]
[1762171073274,3.82260823,175.54,175.51,8.22719743]
[1762171073595,3.82260823,175.53,175.51,8.22719743]
[1762171073790,3.82260823,175.54,175.51,8.22719743]
[1762171073986,3.82260823,175.54,175.51,6.39768104]
[1762171074372,3.82260823,175.53,175.51,6.39768104]
[1762171074579,3.82260823,175.54,175.51,6.39768104]
[1762171074783,3.82260823,175.53,175.51,6.39768104]
[1762171074988,3.82260823,175.54,175.51,6.39768104]
[1762171075187,3.82260823,175.53,175.51,6.39768104]
[1762171075387,3.82260823,175.54,175.51,6.39768104]
[1762171075586,3.82260823,175.53,175.51,6.39768104]
[1762171075897,3.82260823,175.54,175.51,6.39768104]
[1762171076095,3.82260823,175.53,175.51,6.39768104]
[1762171076299,3.82260823,175.54,175.52,0.7]
[1762171076498,3.82260823,175.53,175.51,0.7]
[1762171076675,3.82260823,175.54,175.51,0.7]
[1762171076876,3.82260823,175.53,175.51,0.7]
[1762171077089,3.82260823,175.54,175.51,0.7]
[1762171077289,3.82260823,175.53,175.51,0.7]
[1762171077495,0.71,175.55,175.51,0.7]
[1762171077696,3.82758509,175.54,175.51,0.7]
[1762171077874,3.82758509,175.53,175.52,5.69735642]
[1762171078082,3.82758509,175.56,175.52,22.47026387]
[1762171078290,5.5095464,175.59,175.55,1.82951639]
[1762171078498,3.82816981,175.58,175.55,1.82951639]
[1762171078687,3.82816981,175.57,175.55,2.52951639]
[1762171078987,3.82816981,175.56,175.55,2.52951639]
[1762171079188,3.82816981,175.56,175.55,8.22589918]
[1762171079987,3.82816981,175.56,175.55,7.52589918]
[1762171080193,3.82816981,175.56,175.54,7.52614865]
[1762171080398,3.82816981,175.55,175.54,7.52614865]
[1762171081587,3.82816981,175.55,175.54,8.22614865]
[1762171081787,3.82816981,175.55,175.54,7.52614865]
[1762171082690,3.82816981,175.55,175.54,8.22614865]
[1762171083484,3.82816981,175.55,175.54,7.52614865]
[1762171086816,9.33771621,175.55,175.51,1.82951639]
[1762171087014,9.33771621,175.55,175.51,5.69768104]
[1762171087015,4.53816981,175.54,175.51,5.69768104]
[1762171087215,3.82816981,175.53,175.51,5.69768104]
[1762171087391,3.82816981,175.52,175.51,6.39768104]
[1762171087815,3.82816981,175.52,175.51,8.22719743]
[1762171089199,3.82816981,175.52,175.51,6.39768104]
[1762171089409,3.82816981,175.52,175.51,8.22719743]
[1762171089721,3.78929369,175.52,175.51,8.22719743]
[1762171090150,3.78929369,175.52,175.51,5.69768104]
[1762171090313,3.78929369,175.52,175.51,7.52719743]
[1762171091927,3.78929369,175.52,175.51,8.22719743]
[1762171098326,3.78929369,175.52,175.51,6.39768104]
[1762171098520,3.78929369,175.52,175.51,8.22719743]
[1762171102021,3.78929369,175.52,175.51,7.52719743]
[1762171102424,3.78929369,175.52,175.51,3.53983181]
[1762171102721,3.78929369,175.52,175.5,5.69800569]
[1762171102924,4.7995464,175.56,175.51,2.85983181]
[1762171102925,4.7995464,175.55,175.51,2.85983181]
[1762171103115,4.50789961,175.54,175.52,2.85983181]
[1762171103318,3.83789961,175.53,175.52,2.85983181]
[1762171104343,3.83789961,175.53,175.52,8.55718823]
[1762171105117,3.83789961,175.53,175.52,5.69735642]
[1762171107633,3.83789961,175.53,175.51,2.85983181]
[1762171107634,4.54789961,175.53,175.51,5.69757607]
[1762171107811,4.54789961,175.52,175.51,5.69757607]
[1762171108426,3.83789961,175.52,175.51,5.69757607]
[1762171108625,3.83789961,175.52,175.51,6.37757607]
[1762171108938,3.83789961,175.52,175.51,5.69757607]
[1762171111533,3.83789961,175.52,175.5,17.78484605]
[1762171111534,4.54789961,175.52,175.5,22.80285174]
[1762171111735,3.83789961,175.51,175.5,23.48285174]
[1762171111943,3.83789961,175.51,175.5,22.80285174]
[1762171112741,3.83789961,175.51,175.5,19.94301993]
[1762171112930,3.83789961,175.51,175.5,23.48285174]
[1762171116152,3.84586837,175.51,175.5,22.80285174]
[1762171116333,3.84586837,175.51,175.5,23.48285174]
[1762171116534,4.80733546,175.54,175.5,23.48285174]